[Event "*** Titled Tuesday Blitz"]
[Site "Chess.com"]
[Date "2021.02.02"]
[Round "1"]
[White "svilson23"]
[Black "chegueps"]
[Result "1-0"]
[WhiteElo "2258"]
[BlackElo "2527"]
[TimeControl "180+1"]
[EndTime "10:05:54 PST"]
[Termination "svilson23 won by resignation"]

1. e4 {[%clk 0:02:51.7]} 1... e5 {[%clk 0:02:55.1]} 2. Nf3 {[%clk 0:02:49.2]}
2... Nc6 {[%clk 0:02:55]} 3. Nc3 {[%clk 0:02:48]} 3... d6 {[%clk 0:02:49.7]} 4.
d4 {[%clk 0:02:46.5]} 4... exd4 {[%clk 0:02:49.1]} 5. Nxd4 {[%clk 0:02:45.6]}
5... Bd7 {[%clk 0:02:49.1]} 6. Be3 {[%clk 0:02:43.4]} 6... Nf6 {[%clk
0:02:47.2]} 7. f3 {[%clk 0:02:41.6]} 7... g6 {[%clk 0:02:38.5]} 8. Qd2 {[%clk
0:02:40.7]} 8... Bg7 {[%clk 0:02:34.9]} 9. O-O-O {[%clk 0:02:22.3]} 9... a6
{[%clk 0:02:05]} 10. Kb1 {[%clk 0:02:19.8]} 10... Qe7 {[%clk 0:01:53.4]} 11. g4
{[%clk 0:02:18.4]} 11... O-O-O {[%clk 0:01:49.2]} 12. h4 {[%clk 0:02:14.1]}
12... Nxd4 {[%clk 0:01:43.3]} 13. Bxd4 {[%clk 0:02:13.8]} 13... Bc6 {[%clk
0:01:42.5]} 14. Nd5 {[%clk 0:01:53]} 14... Bxd5 {[%clk 0:01:40]} 15. exd5 {[%clk
0:01:52.5]} 15... Rhe8 {[%clk 0:01:34.5]} 16. Bh3 {[%clk 0:01:49.1]} 16... Kb8
{[%clk 0:01:32.9]} 17. Rhe1 {[%clk 0:01:48.1]} 17... Qf8 {[%clk 0:01:28.5]} 18.
g5 {[%clk 0:01:22.4]} 18... Nd7 {[%clk 0:01:27.6]} 19. Bxg7 {[%clk 0:01:18]}
19... Qxg7 {[%clk 0:01:27.1]} 20. Rxe8 {[%clk 0:01:16.4]} 20... Rxe8 {[%clk
0:01:26.1]} 21. Bxd7 {[%clk 0:01:16.9]} 21... Re7 {[%clk 0:01:24.7]} 22. Bg4
{[%clk 0:01:14.1]} 22... Qe5 {[%clk 0:01:24.4]} 23. a3 {[%clk 0:01:10]} 23...
Qg3 {[%clk 0:01:23.9]} 24. Qd4 {[%clk 0:00:59.9]} 24... Qxh4 {[%clk 0:01:21.1]}
25. Qf6 {[%clk 0:00:59]} 25... Re1 {[%clk 0:01:13]} 26. Rxe1 {[%clk 0:00:51.6]}
26... Qxe1+ {[%clk 0:01:13.9]} 27. Ka2 {[%clk 0:00:51.8]} 27... Qd2 {[%clk
0:01:05.9]} 28. Qd8+ {[%clk 0:00:50.4]} 28... Ka7 {[%clk 0:01:05.7]} 29. Qxc7
{[%clk 0:00:49.5]} 29... Qxd5+ {[%clk 0:01:06.2]} 30. c4 {[%clk 0:00:41.4]}
30... Qxg5 {[%clk 0:01:06.1]} 31. Bc8 {[%clk 0:00:37.3]} 1-0

[Event "*** Titled Tuesday Blitz"]
[Site "Chess.com"]
[Date "2021.02.02"]
[Round "1"]
[White "NodariousBIG"]
[Black "Unknown_IM"]
[Result "1-0"]
[WhiteElo "2773"]
[BlackElo "2403"]
[TimeControl "180+1"]
[EndTime "10:05:56 PST"]
[Termination "NodariousBIG won by resignation"]

1. e4 {[%clk 0:03:00.9]} 1... e5 {[%clk 0:02:59.6]} 2. Nf3 {[%clk 0:03:00.6]}
2... Nc6 {[%clk 0:02:58.5]} 3. d4 {[%clk 0:03:00.8]} 3... exd4 {[%clk
0:02:57.6]} 4. Nxd4 {[%clk 0:03:01.7]} 4... Qf6 {[%clk 0:02:56.4]} 5. Nxc6
{[%clk 0:03:00.3]} 5... Bc5 {[%clk 0:02:55.7]} 6. Qf3 {[%clk 0:02:59.7]} 6...
bxc6 {[%clk 0:02:54.2]} 7. Nd2 {[%clk 0:02:59.4]} 7... d5 {[%clk 0:02:48.4]} 8.
exd5 {[%clk 0:02:44.8]} 8... Qxf3 {[%clk 0:02:48.4]} 9. Nxf3 {[%clk 0:02:45.7]}
9... cxd5 {[%clk 0:02:48.8]} 10. Bf4 {[%clk 0:02:36.2]} 10... c6 {[%clk
0:02:47.2]} 11. Ne5 {[%clk 0:02:19.7]} 11... Bd7 {[%clk 0:02:46.2]} 12. Bd3
{[%clk 0:02:14.8]} 12... Nf6 {[%clk 0:02:36]} 13. O-O {[%clk 0:02:14]} 13... h6
{[%clk 0:02:29.3]} 14. Nxd7 {[%clk 0:02:10.4]} 14... Kxd7 {[%clk 0:02:23.7]} 15.
Bf5+ {[%clk 0:02:09.3]} 15... Kd8 {[%clk 0:02:23.9]} 16. c4 {[%clk 0:02:07.9]}
16... d4 {[%clk 0:02:21.6]} 17. a3 {[%clk 0:02:05.3]} 17... a5 {[%clk
0:02:20.5]} 18. b4 {[%clk 0:02:05.7]} 18... Bb6 {[%clk 0:02:15.2]} 19. Be5
{[%clk 0:01:54]} 19... Re8 {[%clk 0:02:07.1]} 20. f4 {[%clk 0:01:53.9]} 20... c5
{[%clk 0:01:13]} 21. bxc5 {[%clk 0:01:49.7]} 21... Bxc5 {[%clk 0:01:13.9]} 22.
Rfd1 {[%clk 0:01:50]} 22... Rxe5 {[%clk 0:01:03.6]} 23. fxe5 {[%clk 0:01:49.4]}
23... Nd7 {[%clk 0:01:03.6]} 24. Rab1 {[%clk 0:01:42]} 24... Bxa3 {[%clk
0:00:31.3]} 25. Rb5 {[%clk 0:01:33.7]} 25... Ke7 {[%clk 0:00:19.7]} 26. Bxd7
{[%clk 0:01:27]} 26... Kxd7 {[%clk 0:00:20.6]} 27. Rxd4+ {[%clk 0:01:27.4]}
27... Ke6 {[%clk 0:00:21.2]} 28. Rdd5 {[%clk 0:01:25.5]} 28... Rc8 {[%clk
0:00:19.2]} 29. Rb6+ {[%clk 0:01:21.3]} 29... Ke7 {[%clk 0:00:17.2]} 30. Rb7+
{[%clk 0:01:16.1]} 30... Ke6 {[%clk 0:00:17]} 31. Rxa5 {[%clk 0:01:16.1]} 31...
Rxc4 {[%clk 0:00:16.1]} 32. Rxa3 {[%clk 0:01:15.3]} 1-0

[Event "*** Titled Tuesday Blitz"]
[Site "Chess.com"]
[Date "2021.02.02"]
[Round "1"]
[White "mjray79"]
[Black "SkippingLaptop"]
[Result "1-0"]
[WhiteElo "2506"]
[BlackElo "2102"]
[TimeControl "180+1"]
[EndTime "10:05:57 PST"]
[Termination "mjray79 won by checkmate"]

1. d4 {[%clk 0:03:00.9]} 1... Nf6 {[%clk 0:02:58.5]} 2. c4 {[%clk 0:03:00.7]}
2... g6 {[%clk 0:02:58.8]} 3. Nc3 {[%clk 0:03:00.1]} 3... d5 {[%clk 0:02:59.3]}
4. cxd5 {[%clk 0:03:01]} 4... Nxd5 {[%clk 0:02:59.5]} 5. e4 {[%clk 0:03:01.9]}
5... Nxc3 {[%clk 0:02:59.4]} 6. bxc3 {[%clk 0:03:02.8]} 6... Bg7 {[%clk
0:02:58.4]} 7. Bc4 {[%clk 0:03:03.2]} 7... c5 {[%clk 0:02:55.6]} 8. Be3 {[%clk
0:03:03.5]} 8... O-O {[%clk 0:02:50.3]} 9. Ne2 {[%clk 0:03:03.6]} 9... Nc6
{[%clk 0:02:47.9]} 10. O-O {[%clk 0:03:02.3]} 10... b6 {[%clk 0:02:46.6]} 11.
Qd2 {[%clk 0:02:57.2]} 11... cxd4 {[%clk 0:02:44.2]} 12. cxd4 {[%clk 0:02:56.6]}
12... Bb7 {[%clk 0:02:44.6]} 13. f3 {[%clk 0:02:48.1]} 13... e6 {[%clk
0:02:35.3]} 14. Rac1 {[%clk 0:02:41.9]} 14... Rc8 {[%clk 0:02:33.9]} 15. Rfd1
{[%clk 0:02:33.2]} 15... Na5 {[%clk 0:02:27.6]} 16. Bd3 {[%clk 0:02:28.7]} 16...
f5 {[%clk 0:02:22.1]} 17. Nf4 {[%clk 0:02:19.1]} 17... Qe7 {[%clk 0:02:13.3]}
18. d5 {[%clk 0:02:11.1]} 18... exd5 {[%clk 0:02:05.7]} 19. exd5 {[%clk
0:02:09.7]} 19... Bh6 {[%clk 0:01:59.7]} 20. Bb5 {[%clk 0:01:50.9]} 20... Bxf4
{[%clk 0:01:45.3]} 21. Bxf4 {[%clk 0:01:47.7]} 21... Rc5 {[%clk 0:01:45.7]} 22.
d6 {[%clk 0:01:33.7]} 22... Qf6 {[%clk 0:01:39.2]} 23. Rxc5 {[%clk 0:01:30.6]}
23... bxc5 {[%clk 0:01:40.1]} 24. d7 {[%clk 0:01:31]} 24... Qd4+ {[%clk
0:01:31.9]} 25. Qxd4 {[%clk 0:01:30.4]} 25... cxd4 {[%clk 0:01:32.8]} 26. Rxd4
{[%clk 0:01:30.5]} 26... Bc6 {[%clk 0:01:28.1]} 27. d8=Q {[%clk 0:01:28.1]}
27... Rxd8 {[%clk 0:01:23.2]} 28. Rxd8+ {[%clk 0:01:29]} 28... Kf7 {[%clk
0:01:23]} 29. Bxc6 {[%clk 0:01:28]} 29... Nxc6 {[%clk 0:01:23.9]} 30. Rd7+
{[%clk 0:01:27.6]} 30... Ke6 {[%clk 0:01:23]} 31. Rxh7 {[%clk 0:01:27.3]} 31...
Nd4 {[%clk 0:01:22]} 32. Kf2 {[%clk 0:01:25.8]} 32... Nb5 {[%clk 0:01:18]} 33.
Rb7 {[%clk 0:01:23.7]} 33... Nc3 {[%clk 0:01:16.4]} 34. Rxa7 {[%clk 0:01:22.3]}
34... Kd5 {[%clk 0:01:15.2]} 35. Ra6 {[%clk 0:01:18.5]} 35... Nd1+ {[%clk
0:01:09.6]} 36. Ke1 {[%clk 0:01:18]} 36... Nc3 {[%clk 0:01:08.7]} 37. Rxg6
{[%clk 0:01:17.9]} 37... Nxa2 {[%clk 0:01:09.1]} 38. Bd2 {[%clk 0:01:17.1]}
38... Kc5 {[%clk 0:01:03.7]} 39. Ra6 {[%clk 0:01:16.6]} 39... Nb4 {[%clk
0:01:02.6]} 40. Bxb4+ {[%clk 0:01:16.7]} 40... Kxb4 {[%clk 0:01:03.5]} 41. Rf6
{[%clk 0:01:17.2]} 41... Kc4 {[%clk 0:01:04.1]} 42. Rxf5 {[%clk 0:01:18.1]}
42... Kd3 {[%clk 0:01:05]} 43. h4 {[%clk 0:01:17.8]} 43... Ke3 {[%clk
0:01:05.9]} 44. h5 {[%clk 0:01:18.1]} 44... Kd4 {[%clk 0:01:06.4]} 45. h6 {[%clk
0:01:19]} 45... Kc4 {[%clk 0:01:07.1]} 46. h7 {[%clk 0:01:19.4]} 46... Kd3
{[%clk 0:01:08]} 47. h8=Q {[%clk 0:01:19.8]} 47... Kc2 {[%clk 0:01:08.1]} 48.
Qc8+ {[%clk 0:01:18.8]} 48... Kd3 {[%clk 0:01:09]} 49. Rd5+ {[%clk 0:01:18.8]}
49... Ke3 {[%clk 0:01:08.2]} 50. Qe6+ {[%clk 0:01:18.8]} 50... Kf4 {[%clk
0:01:09.1]} 51. Rf5+ {[%clk 0:01:19.3]} 51... Kg3 {[%clk 0:01:10]} 52. Qg6+
{[%clk 0:01:19.3]} 52... Kh2 {[%clk 0:01:10.9]} 53. g4 {[%clk 0:01:16.7]} 53...
Kg1 {[%clk 0:01:11.8]} 54. g5 {[%clk 0:01:15.9]} 54... Kg2 {[%clk 0:01:12.7]}
55. Rf4 {[%clk 0:01:14.9]} 55... Kg3 {[%clk 0:01:13.6]} 56. Rg4+ {[%clk
0:01:15]} 56... Kh2 {[%clk 0:01:13]} 57. Qh5# {[%clk 0:01:14.9]} 1-0

[Event "*** Titled Tuesday Blitz"]
[Site "Chess.com"]
[Date "2021.02.02"]
[Round "1"]
[White "wonderfultime"]
[Black "ZEN-22"]
[Result "1-0"]
[WhiteElo "3010"]
[BlackElo "2475"]
[TimeControl "180+1"]
[EndTime "10:05:58 PST"]
[Termination "wonderfultime won by resignation"]

1. d4 {[%clk 0:02:58]} 1... Nf6 {[%clk 0:02:59.7]} 2. Nf3 {[%clk 0:02:57.9]}
2... c5 {[%clk 0:02:55.8]} 3. c3 {[%clk 0:02:58.4]} 3... d5 {[%clk 0:02:54.8]}
4. Bf4 {[%clk 0:02:58.2]} 4... Nc6 {[%clk 0:02:52.6]} 5. e3 {[%clk 0:02:54.1]}
5... Bg4 {[%clk 0:02:52.3]} 6. Qb3 {[%clk 0:02:53.3]} 6... Qd7 {[%clk 0:02:44]}
7. Ne5 {[%clk 0:02:52.5]} 7... Qc8 {[%clk 0:02:40.6]} 8. Nxg4 {[%clk 0:02:51.6]}
8... Nxg4 {[%clk 0:02:40]} 9. Qxd5 {[%clk 0:02:51.7]} 9... cxd4 {[%clk
0:02:14.1]} 10. exd4 {[%clk 0:02:45.6]} 10... e6 {[%clk 0:02:14.4]} 11. Qf3
{[%clk 0:02:45.5]} 11... e5 {[%clk 0:02:14.6]} 12. dxe5 {[%clk 0:02:42.3]} 12...
Bc5 {[%clk 0:02:03.4]} 13. Bg3 {[%clk 0:02:34.8]} 13... O-O {[%clk 0:01:58.3]}
14. Be2 {[%clk 0:02:33.3]} 14... Ncxe5 {[%clk 0:01:56.3]} 15. Qe4 {[%clk
0:02:31.5]} 15... Re8 {[%clk 0:01:48.5]} 16. O-O {[%clk 0:02:29.2]} 16... f5
{[%clk 0:01:44.2]} 17. Qd5+ {[%clk 0:02:22]} 17... Kh8 {[%clk 0:01:44]} 18. Bxg4
{[%clk 0:01:53.9]} 18... Nxg4 {[%clk 0:01:41.1]} 19. h3 {[%clk 0:01:52.6]} 19...
f4 {[%clk 0:01:37.3]} 20. Bh4 {[%clk 0:01:39.3]} 20... Re5 {[%clk 0:01:24.6]}
21. Qf3 {[%clk 0:01:31]} 21... Ne3 {[%clk 0:01:19.1]} 22. Re1 {[%clk 0:01:19.4]}
22... Nxg2 {[%clk 0:01:04.8]} 23. Rxe5 {[%clk 0:01:15.3]} 23... Nxh4 {[%clk
0:01:04.7]} 24. Qe4 {[%clk 0:01:10.5]} 24... Qxh3 {[%clk 0:01:03.9]} 25. Re8+
{[%clk 0:01:09.5]} 25... Bf8 {[%clk 0:01:02.5]} 26. Rxa8 {[%clk 0:00:58.3]}
26... Qg4+ {[%clk 0:00:57.9]} 27. Kh2 {[%clk 0:00:58.4]} 27... Ng6 {[%clk
0:00:50.7]} 28. Nd2 {[%clk 0:00:54.8]} 28... h5 {[%clk 0:00:43.2]} 29. Nf3
{[%clk 0:00:53.6]} 29... Kh7 {[%clk 0:00:33.1]} 30. Rg1 {[%clk 0:00:53.4]} 1-0

[Event "*** Titled Tuesday Blitz"]
[Site "Chess.com"]
[Date "2021.02.02"]
[Round "1"]
[White "ShahMatKanal"]
[Black "EvgenyT"]
[Result "0-1"]
[WhiteElo "2470"]
[BlackElo "2985"]
[TimeControl "180+1"]
[EndTime "10:05:59 PST"]
[Termination "EvgenyT won by resignation"]

1. d4 {[%clk 0:03:00.9]} 1... Nf6 {[%clk 0:02:58.4]} 2. Nf3 {[%clk 0:02:59.7]}
2... b6 {[%clk 0:02:58.1]} 3. g3 {[%clk 0:02:57.9]} 3... Bb7 {[%clk 0:02:57.9]}
4. Bg2 {[%clk 0:02:58.3]} 4... c5 {[%clk 0:02:58.3]} 5. dxc5 {[%clk 0:02:57.2]}
5... bxc5 {[%clk 0:02:58.1]} 6. c4 {[%clk 0:02:57.4]} 6... g6 {[%clk 0:02:55.5]}
7. b3 {[%clk 0:02:54.1]} 7... Bg7 {[%clk 0:02:55.2]} 8. Bb2 {[%clk 0:02:54.6]}
8... O-O {[%clk 0:02:55.4]} 9. O-O {[%clk 0:02:55]} 9... d6 {[%clk 0:02:55.1]}
10. Nc3 {[%clk 0:02:44.7]} 10... Nbd7 {[%clk 0:02:54.2]} 11. Qc2 {[%clk
0:02:37.1]} 11... Rb8 {[%clk 0:02:51.2]} 12. Rad1 {[%clk 0:02:23.3]} 12... Qa5
{[%clk 0:02:49.7]} 13. Qc1 {[%clk 0:01:58.2]} 13... Rfc8 {[%clk 0:02:47.1]} 14.
Qa1 {[%clk 0:01:55.4]} 14... Ne4 {[%clk 0:02:25.1]} 15. Nd5 {[%clk 0:01:10.1]}
15... Bxb2 {[%clk 0:02:23.8]} 16. Nxe7+ {[%clk 0:01:10.2]} 16... Kf8 {[%clk
0:02:23.1]} 17. Nxg6+ {[%clk 0:01:08.5]} 17... hxg6 {[%clk 0:02:18.7]} 18. Qxb2
{[%clk 0:01:09.4]} 18... Qc3 {[%clk 0:02:14.5]} 19. Qb1 {[%clk 0:00:52]} 19...
Qf6 {[%clk 0:02:10.6]} 20. Qc2 {[%clk 0:00:38.7]} 20... Re8 {[%clk 0:02:03.6]}
21. h4 {[%clk 0:00:33.9]} 21... Kg7 {[%clk 0:01:53.9]} 22. Rd3 {[%clk
0:00:33.4]} 22... Ne5 {[%clk 0:01:49.3]} 23. Nxe5 {[%clk 0:00:30.9]} 23... Rxe5
{[%clk 0:01:48.7]} 24. Rf3 {[%clk 0:00:26.6]} 24... Qe7 {[%clk 0:01:48.1]} 25.
Rf4 {[%clk 0:00:26.5]} 25... Re8 {[%clk 0:01:46.9]} 26. e3 {[%clk 0:00:23.8]}
26... Nf6 {[%clk 0:01:45]} 27. Rd1 {[%clk 0:00:21.7]} 27... Bxg2 {[%clk
0:01:43.7]} 28. Kxg2 {[%clk 0:00:22.6]} 28... Qb7+ {[%clk 0:01:39.4]} 29. Kg1
{[%clk 0:00:19.6]} 29... Nh5 {[%clk 0:01:37.4]} 30. Rg4 {[%clk 0:00:09.4]} 30...
Qf3 {[%clk 0:01:35]} 31. Rg5 {[%clk 0:00:08.1]} 31... Rxg5 {[%clk 0:01:32.6]}
32. hxg5 {[%clk 0:00:08.4]} 32... Nxg3 {[%clk 0:01:29.9]} 33. fxg3 {[%clk
0:00:08.2]} 33... Rh8 {[%clk 0:01:29.3]} 34. Qc3+ {[%clk 0:00:05.5]} 34... Kg8
{[%clk 0:01:28.9]} 35. Qxh8+ {[%clk 0:00:03.1]} 35... Kxh8 {[%clk 0:01:28.7]}
0-1

[Event "*** Titled Tuesday Blitz"]
[Site "Chess.com"]
[Date "2021.02.02"]
[Round "1"]
[White "saraswathii"]
[Black "Blitzstream"]
[Result "1-0"]
[WhiteElo "2430"]
[BlackElo "2745"]
[TimeControl "180+1"]
[EndTime "10:06:01 PST"]
[Termination "saraswathii won by resignation"]

1. e4 {[%clk 0:02:58.2]} 1... d5 {[%clk 0:03:00.4]} 2. exd5 {[%clk 0:02:56.3]}
2... Qxd5 {[%clk 0:03:01.3]} 3. d4 {[%clk 0:02:54]} 3... Nc6 {[%clk 0:03:01.1]}
4. Nf3 {[%clk 0:02:52.6]} 4... Bg4 {[%clk 0:03:01.4]} 5. c3 {[%clk 0:02:50.3]}
5... O-O-O {[%clk 0:03:00.9]} 6. Be3 {[%clk 0:02:48.4]} 6... e5 {[%clk 0:03:01]}
7. Be2 {[%clk 0:02:45.4]} 7... exd4 {[%clk 0:02:57.5]} 8. cxd4 {[%clk
0:02:42.5]} 8... Nf6 {[%clk 0:02:56]} 9. Nc3 {[%clk 0:02:40.7]} 9... Qh5 {[%clk
0:02:47.4]} 10. Qa4 {[%clk 0:02:28.5]} 10... Bd6 {[%clk 0:02:15.7]} 11. h3
{[%clk 0:02:23.8]} 11... Rhe8 {[%clk 0:02:12.5]} 12. O-O-O {[%clk 0:02:19.1]}
12... Bd7 {[%clk 0:02:09.8]} 13. Ne5 {[%clk 0:02:14.2]} 13... Qh4 {[%clk
0:01:54.8]} 14. g3 {[%clk 0:02:07.9]} 14... Bxe5 {[%clk 0:01:03.1]} 15. gxh4
{[%clk 0:01:58.7]} 15... Bd6 {[%clk 0:00:57.9]} 16. d5 {[%clk 0:01:50.7]} 16...
Nb4 {[%clk 0:00:55]} 17. Qxa7 {[%clk 0:01:48.5]} 17... Bf5 {[%clk 0:00:54.3]}
18. a3 {[%clk 0:01:17.2]} 18... Nc2 {[%clk 0:00:50.4]} 19. Bb5 {[%clk
0:01:03.9]} 19... c6 {[%clk 0:00:50.3]} 20. dxc6 {[%clk 0:00:58.2]} 20... Re7
{[%clk 0:00:50.8]} 21. cxb7+ {[%clk 0:00:50.5]} 21... Rxb7 {[%clk 0:00:51]} 22.
Ba6 {[%clk 0:00:48.7]} 22... Rd7 {[%clk 0:00:51.5]} 23. Qxb7+ {[%clk 0:00:43.7]}
23... Rxb7 {[%clk 0:00:51.3]} 24. Rxd6 {[%clk 0:00:43.3]} 24... Ne4 {[%clk
0:00:49.4]} 25. Bxb7+ {[%clk 0:00:41.2]} 25... Kxb7 {[%clk 0:00:49.4]} 26. Rd5
{[%clk 0:00:37.5]} 26... Bg6 {[%clk 0:00:47.2]} 27. h5 {[%clk 0:00:34]} 27...
Nxc3 {[%clk 0:00:46.4]} 28. bxc3 {[%clk 0:00:34.4]} 28... Nxe3 {[%clk
0:00:46.4]} 29. hxg6 {[%clk 0:00:31.7]} 29... Nxd5 {[%clk 0:00:46.3]} 30. gxf7
{[%clk 0:00:32.3]} 1-0

[Event "*** Titled Tuesday Blitz"]
[Site "Chess.com"]
[Date "2021.02.02"]
[Round "1"]
[White "Vugar_Manafov"]
[Black "tylityli"]
[Result "1-0"]
[WhiteElo "2658"]
[BlackElo "2354"]
[TimeControl "180+1"]
[EndTime "10:06:04 PST"]
[Termination "Vugar_Manafov won by resignation"]

1. Nf3 {[%clk 0:03:00.7]} 1... Nf6 {[%clk 0:02:56.7]} 2. g3 {[%clk 0:03:01.6]}
2... d5 {[%clk 0:02:55.8]} 3. Bg2 {[%clk 0:03:01.8]} 3... Nc6 {[%clk 0:02:55.3]}
4. O-O {[%clk 0:03:02.7]} 4... e5 {[%clk 0:02:55.4]} 5. d3 {[%clk 0:03:03.6]}
5... Be7 {[%clk 0:02:54.4]} 6. Nc3 {[%clk 0:03:01.8]} 6... O-O {[%clk
0:02:51.5]} 7. e4 {[%clk 0:02:59.2]} 7... d4 {[%clk 0:02:51.1]} 8. Ne2 {[%clk
0:02:58.6]} 8... h6 {[%clk 0:02:48.1]} 9. Nd2 {[%clk 0:02:58.2]} 9... Nh7 {[%clk
0:02:34.6]} 10. f4 {[%clk 0:02:57.2]} 10... f5 {[%clk 0:02:32.3]} 11. exf5
{[%clk 0:02:50.1]} 11... Bxf5 {[%clk 0:02:26.7]} 12. Nc4 {[%clk 0:02:49.5]}
12... exf4 {[%clk 0:02:16.2]} 13. Nxf4 {[%clk 0:02:50.4]} 13... Ng5 {[%clk
0:02:06.8]} 14. h4 {[%clk 0:02:43.6]} 14... Ne6 {[%clk 0:02:05.9]} 15. Bd5
{[%clk 0:02:41.5]} 15... Rf6 {[%clk 0:01:57.2]} 16. Qe2 {[%clk 0:02:22.6]} 16...
Qd7 {[%clk 0:01:54.9]} 17. Re1 {[%clk 0:01:52.7]} 17... Nd8 {[%clk 0:01:41.3]}
18. g4 {[%clk 0:01:45.3]} 18... c6 {[%clk 0:01:29.6]} 19. gxf5 {[%clk
0:01:42.2]} 19... cxd5 {[%clk 0:01:29.3]} 20. fxe6 {[%clk 0:01:39.7]} 20... Qc7
{[%clk 0:01:28.9]} 21. Ne5 {[%clk 0:01:35.8]} 21... Nxe6 {[%clk 0:01:27.5]} 22.
Nxd5 {[%clk 0:01:31.1]} 22... Qd8 {[%clk 0:01:20.2]} 23. Nxf6+ {[%clk
0:01:29.1]} 23... Bxf6 {[%clk 0:01:21.1]} 24. Nc6 {[%clk 0:01:28.4]} 24... bxc6
{[%clk 0:01:19.3]} 25. Qxe6+ {[%clk 0:01:28]} 25... Kh8 {[%clk 0:01:19.9]} 26.
Bf4 {[%clk 0:01:26.3]} 26... Bxh4 {[%clk 0:01:19.3]} 27. Re2 {[%clk 0:01:24.5]}
27... Qa5 {[%clk 0:01:05.4]} 28. Qe5 {[%clk 0:01:16.6]} 28... Qa6 {[%clk
0:00:52.7]} 29. Bxh6 {[%clk 0:01:12.4]} 29... Qb7 {[%clk 0:00:40.4]} 30. Rh2
{[%clk 0:01:08.5]} 30... Qf7 {[%clk 0:00:33.2]} 31. Rxh4 {[%clk 0:01:04.6]}
31... Qg6+ {[%clk 0:00:33.1]} 32. Bg5+ {[%clk 0:01:04.7]} 32... Kg8 {[%clk
0:00:31]} 33. Re1 {[%clk 0:01:05.2]} 1-0

[Event "*** Titled Tuesday Blitz"]
[Site "Chess.com"]
[Date "2021.02.02"]
[Round "1"]
[White "AustrianFalcon"]
[Black "mamonika"]
[Result "1-0"]
[WhiteElo "2494"]
[BlackElo "2035"]
[TimeControl "180+1"]
[EndTime "10:06:04 PST"]
[Termination "AustrianFalcon won on time"]

1. e4 {[%clk 0:02:59.8]} 1... c5 {[%clk 0:02:58.4]} 2. Nf3 {[%clk 0:02:58.5]}
2... e6 {[%clk 0:02:48.3]} 3. d4 {[%clk 0:02:47.7]} 3... cxd4 {[%clk 0:02:49.2]}
4. Nxd4 {[%clk 0:02:47.5]} 4... Nf6 {[%clk 0:02:46.3]} 5. Nc3 {[%clk 0:02:47.3]}
5... d6 {[%clk 0:02:44.8]} 6. g4 {[%clk 0:02:46.8]} 6... Nc6 {[%clk 0:02:40.3]}
7. g5 {[%clk 0:02:40.9]} 7... Nd7 {[%clk 0:02:38.1]} 8. Ndb5 {[%clk 0:02:37]}
8... Nc5 {[%clk 0:02:13.7]} 9. Bf4 {[%clk 0:02:24.6]} 9... Ne5 {[%clk
0:02:01.9]} 10. b4 {[%clk 0:02:17]} 10... Na6 {[%clk 0:01:50.6]} 11. a3 {[%clk
0:02:04]} 11... Be7 {[%clk 0:01:04.4]} 12. Bg3 {[%clk 0:01:47.8]} 12... O-O
{[%clk 0:00:44.9]} 13. f4 {[%clk 0:01:39.7]} 13... Nc6 {[%clk 0:00:44]} 14. h4
{[%clk 0:01:29.9]} 14... Qb6 {[%clk 0:00:30]} 15. Bf2 {[%clk 0:01:27.9]} 15...
Qd8 {[%clk 0:00:29.9]} 16. Bd3 {[%clk 0:01:14.5]} 16... Bd7 {[%clk 0:00:17.6]}
17. h5 {[%clk 0:01:13]} 17... f5 {[%clk 0:00:14.4]} 18. exf5 {[%clk 0:01:06.5]}
18... exf5 {[%clk 0:00:13]} 19. h6 {[%clk 0:01:06.7]} 19... g6 {[%clk
0:00:10.4]} 20. Nd5 {[%clk 0:01:05.7]} 20... Be6 {[%clk 0:00:07]} 21. Qf3 {[%clk
0:01:02.9]} 21... Qd7 {[%clk 0:00:02.8]} 22. O-O-O {[%clk 0:01:01.5]} 22... Rae8
{[%clk 0:00:01.3]} 23. Rhe1 {[%clk 0:01:00.6]} 23... Bd8 {[%clk 0:00:01.4]} 24.
Bc4 {[%clk 0:00:59.3]} 1-0

[Event "*** Titled Tuesday Blitz"]
[Site "Chess.com"]
[Date "2021.02.02"]
[Round "1"]
[White "Chessbard1972"]
[Black "CaptainCasanova"]
[Result "1-0"]
[WhiteElo "2402"]
[BlackElo "2721"]
[TimeControl "180+1"]
[EndTime "10:06:05 PST"]
[Termination "Chessbard1972 won by resignation"]

1. e4 {[%clk 0:03:00.3]} 1... e6 {[%clk 0:02:59.8]} 2. d4 {[%clk 0:02:59.4]}
2... d5 {[%clk 0:03:00.7]} 3. e5 {[%clk 0:02:59.3]} 3... c5 {[%clk 0:03:00.7]}
4. dxc5 {[%clk 0:02:59.9]} 4... Nc6 {[%clk 0:03:01.6]} 5. Nf3 {[%clk 0:02:58.9]}
5... Bxc5 {[%clk 0:03:02.2]} 6. Bd3 {[%clk 0:02:55.4]} 6... Nge7 {[%clk
0:03:02.5]} 7. Bf4 {[%clk 0:02:54.3]} 7... h6 {[%clk 0:03:01.8]} 8. h4 {[%clk
0:02:51.8]} 8... Qb6 {[%clk 0:03:01.3]} 9. O-O {[%clk 0:02:45.5]} 9... Qxb2
{[%clk 0:03:00.8]} 10. Nbd2 {[%clk 0:02:44.7]} 10... Qb6 {[%clk 0:03:01.4]} 11.
c4 {[%clk 0:02:40.3]} 11... Qc7 {[%clk 0:02:54.7]} 12. Rc1 {[%clk 0:02:31.4]}
12... Bb6 {[%clk 0:02:51.6]} 13. Bg3 {[%clk 0:02:27.9]} 13... Bd7 {[%clk
0:02:50.9]} 14. cxd5 {[%clk 0:02:21.9]} 14... Nxd5 {[%clk 0:02:50.4]} 15. Nc4
{[%clk 0:02:18.5]} 15... O-O {[%clk 0:02:46.8]} 16. Bb1 {[%clk 0:02:12]} 16...
Qd8 {[%clk 0:02:40.6]} 17. Qd3 {[%clk 0:02:07.2]} 17... g6 {[%clk 0:02:39.9]}
18. h5 {[%clk 0:02:04.5]} 18... Nce7 {[%clk 0:02:38.3]} 19. Bh4 {[%clk
0:01:57.2]} 19... Bb5 {[%clk 0:02:32.5]} 20. hxg6 {[%clk 0:01:48.1]} 20... fxg6
{[%clk 0:02:31.3]} 21. Nd4 {[%clk 0:01:43.9]} 21... Nf4 {[%clk 0:02:28.2]} 22.
Nxb5 {[%clk 0:01:22.4]} 22... Nf5 {[%clk 0:02:27.4]} 23. Bxd8 {[%clk 0:01:14.9]}
23... Nxd3 {[%clk 0:02:25.5]} 24. Bxd3 {[%clk 0:01:05]} 24... Rfxd8 {[%clk
0:02:17.8]} 25. Bxf5 {[%clk 0:01:01.6]} 25... gxf5 {[%clk 0:02:18.7]} 26. Rfd1
{[%clk 0:01:00.5]} 26... Kg7 {[%clk 0:02:05.7]} 27. Nxb6 {[%clk 0:01:00]} 27...
axb6 {[%clk 0:02:05.4]} 28. Rc7+ {[%clk 0:00:58.4]} 28... Kg6 {[%clk 0:02:01.2]}
29. Rxd8 {[%clk 0:00:58]} 29... Rxd8 {[%clk 0:02:02.1]} 30. Nd6 {[%clk
0:00:53.7]} 30... Ra8 {[%clk 0:02:02.4]} 31. Rxb7 {[%clk 0:00:52.7]} 31... Rxa2
{[%clk 0:02:03.3]} 32. Rxb6 {[%clk 0:00:52.6]} 32... f4 {[%clk 0:02:03.1]} 33.
Rb4 {[%clk 0:00:41]} 33... Kg5 {[%clk 0:01:58.7]} 34. Nf7+ {[%clk 0:00:38.6]}
34... Kf5 {[%clk 0:01:58.4]} 35. f3 {[%clk 0:00:31.5]} 35... h5 {[%clk
0:01:51.6]} 36. Re4 {[%clk 0:00:29.3]} 36... Ra7 {[%clk 0:01:47]} 37. Nd6+
{[%clk 0:00:27.8]} 37... Kg5 {[%clk 0:01:47.6]} 38. Kh2 {[%clk 0:00:27.1]} 38...
Ra1 {[%clk 0:01:46.9]} 39. Ne8 {[%clk 0:00:25.3]} 39... h4 {[%clk 0:01:43.4]}
40. Ng7 {[%clk 0:00:24.9]} 40... Ra6 {[%clk 0:01:41.1]} 41. Rd4 {[%clk
0:00:22.4]} 41... Kg6 {[%clk 0:01:38.4]} 42. Rd6 {[%clk 0:00:20.5]} 42... Ra5
{[%clk 0:01:29.8]} 43. Nxe6 {[%clk 0:00:20.3]} 43... Kf5 {[%clk 0:01:30.2]} 44.
Nd4+ {[%clk 0:00:19.7]} 44... Kxe5 {[%clk 0:01:29.9]} 45. Nc6+ {[%clk
0:00:18.1]} 45... Kxd6 {[%clk 0:01:29.7]} 46. Nxa5 {[%clk 0:00:19]} 1-0